Cogmind - Beta 15 @@@ ROGUE MODE // 2025.08.13 @ 12:08:32 Player: human Result: Self-destructed Performance ------------- Evolutions (1) 500 Regions Visited (3) 600 Robots Destroyed (52) 260 Value Destroyed (1223) 1223 Prototype IDs (1) 20 Alien Tech Used (0) 0 Bonus (51) 51 TOTAL SCORE: 2654 Bonus ------- High Alert Combat Kills 51 Cogmind --------- Core Integrity 322/400 Matter 235/300 Energy 250/250 System Corruption 0% Temperature Cool (0) Movement Rolling (110) Ox1 Location -9/Materials Parts ------- > --- POWER (1) -------- Ion Engine > --- PROPULSION (2) --- Compact Wheel Armored Wheel > --- UTILITY (4) ------ Large Storage Unit Hardened Light Armor Plating Hacking Suite > --- WEAPON (2) ------- Advanced Beam Cannon Flak Cannon > --- INVENTORY (15) --- Faulty Heavy Ion Engine Small Storage Unit Large Matter Pod (150) Machine Analyzer Improved Terrain Scanner Seismic Detector Hardened Light Armor Plating Hardened Light Armor Plating Improved Trap Extractor (0/6) Minigun Flak Cannon Rocket Launcher Mini Grenade Launcher Mini Grenade Launcher Datajack Peak State ------------ > --- POWER ------------ Ion Engine > --- PROPULSION ------- Compact Wheel Compact Wheel > --- UTILITY ---------- Large Storage Unit Hardened Light Armor Plating Hardened Medium Armor Plating Hacking Suite > --- WEAPON ----------- Ion Cannon Assault Cannon > --- INVENTORY -------- Heavy Ion Engine Light Treads Small Storage Unit Large Matter Pod Improved Terrain Scanner Seismic Detector Hardened Light Armor Plating Hardened Light Armor Plating Improved Trap Extractor EM Shotgun Heavy Particle Cannon Rocket Launcher Mini Grenade Launcher Mini Grenade Launcher Mini Grenade Launcher [Rating: 21] Favorites ----------- Power Ion Engine Engine Ion Engine Propulsion Light Treads Treads Light Treads Wheel Compact Wheel Utility Hardened Light Armor Plating Device Improved Trap Extractor Storage Large Storage Unit Hackware Hacking Suite Protection Hardened Light Armor Plating Weapon EM Shotgun Energy Gun EM Shotgun Energy Cannon Advanced Beam Cannon Ballistic Gun Assault Rifle Ballistic Cannon Assault Cannon Launcher Mini Grenade Launcher Build | -11 -10 -10 -9 ------- Run | Yrd Mat Min Mat Slots Evolved 2 | . . . 2 Power . | . . . . Propulsion . | . . . . Utility 2 | . . . 2 Weapon . | . . . . Parts Attached 36 | 6 5 7 18 Power 3 | 1 . 1 1 Engine 3 | 1 . 1 1 Core . | . . . . Reactor . | . . . . Propulsion 5 | 2 . 1 2 Treads 2 | 2 . . . Leg . | . . . . Wheel 3 | . . 1 2 Hover . | . . . . Flight . | . . . . Utility 10 | 1 3 2 4 Device 1 | . . 1 . Storage 3 | 1 1 . 1 Processor . | . . . . Hackware 1 | . . . 1 Protection 5 | . 2 1 2 Artifact . | . . . . Weapon 18 | 2 2 3 11 Energy Gun 3 | 1 2 . . Energy Cannon 4 | . . 1 3 Ballistic Gun 2 | 1 . . 1 Ballistic Cannon 5 | . . 1 4 Launcher 4 | . . 1 3 Special Weapon . | . . . . Impact Weapon . | . . . . Slashing Weapon . | . . . . Piercing Weapon . | . . . . Special Melee Weapon . | . . . . Unidentified Prototypes 1 | . . . 1 Parts Lost 4 | . . 1 3 Power 2 | . . 1 1 Propulsion 1 | . . . 1 Utility 1 | . . . 1 Weapon . | . . . . Highest Loss Streak 2 | . . 1 2 To Critical Strikes . | . . . . Average Backups 11 | 2 7 14 14 Power . | . 1 . . Propulsion 1 | 1 2 1 . Utility 5 | . 2 6 7 Weapon 3 | . 2 6 5 Tool/Special . | . . . . Unused Backups 13 | . 1 2 10 Power 1 | . . . 1 Propulsion . | . . . . Utility 6 | . . . 6 Weapon 5 | . 1 2 2 Tool/Special 1 | . . . 1 Average Slot Usage (%) 96 | . 95 99 96 Engine 12 | . 14 14 10 Treads 14 | . 28 23 . Wheel 10 | . . 4 21 Storage 12 | . 14 14 11 Hackware 4 | . . . 10 Protection 15 | . 9 13 20 Energy Gun 9 | . 16 19 . Energy Cannon 2 | . . 1 5 Ballistic Gun 6 | . 11 . 3 Ballistic Cannon 5 | . . 3 11 Launcher 1 | . . 2 1 Peak Build Rating 21 | 6 12 16 21 Average Rating 14 | 4 7 12 20 On Entrance 8 | . 6 12 15 Naked Turns . | . . . . Heaviest Build 50 | 14 36 44 50 Greatest Support 40 | 40 40 40 32 Greatest Overweight (x) 2 | . . 2 1 Average Overweight (x) . | . . . 1 Largest Inventory Capacity 15 | 8 15 15 15 Average Capacity 12 | 6 9 15 15 Most Carried 15 | 4 15 15 15 Average Carried 11 | 2 7 14 14 Final Capacity 15 | 8 15 15 15 Final Carried 15 | 4 15 15 15 Class Distribution -------------------- 100% | Mutant Dominant Class ---------------- Mutant | -10/Materials Mutant | -10/Mines Mutant | -9/Materials Resources | -11 -10 -10 -9 ----------- Run | Yrd Mat Min Mat Matter Collected 1613 | 211 283 142 977 Remotely . | . . . . Salvage Created 1384 | . 414 102 868 Parts 97 | . 24 8 65 Haulers Intercepted 4 | . . . 4 Recyclers Shooed 2 | . . . 2 Parts Field Recycled . | . . . . Retrieved Matter . | . . . . Parts Self-Destructed . | . . . . Prevented . | . . . . Kills | -11 -10 -10 -9 ------- Run | Yrd Mat Min Mat Combat Hostiles Destroyed 47 | . 10 11 26 Guns 16 | . 9 3 4 Cannons 13 | . . 1 12 AOE 17 | . . 7 10 Classes Destroyed 12 | . 2 3 7 Worker 1 | . . . 1 Builder 1 | . . . 1 Tunneler 1 | . . 1 . Hauler 4 | . . . 4 Recycler 1 | . . . 1 Operator 2 | . . . 2 Watcher 3 | . 1 . 2 Swarmer 13 | . . 3 10 Grunt 19 | . 10 . 9 Brawler 2 | . . . 2 Sentry 5 | . . . 5 Assembled 8 | . . 8 . Best Kill Streak 9 | . 3 9 7 Combat Bots Only 8 | . 3 8 5 Max Kills in Single Turn 4 | . 2 3 4 Gunslinging 1 | . 1 1 . Exploded 3 | . . 3 3 Melee . | . . . . Uniques/NPCs Destroyed . | . . . . Combat | -11 -10 -10 -9 -------- Run | Yrd Mat Min Mat Hostile Shots Fired 201 | . 52 31 118 Missed 53 | . 10 11 32 Hits 148 | . 42 20 86 Projectile 148 | . 42 20 86 AOE 3 | . . 3 . Critical Strikes 3 | . . . 3 Damage Taken 1879 | . 480 371 1028 Core 276 | . 124 74 78 Absorbed by Shields . | . . . . Core Remaining (%) 60 | 100 . 20 . Volleys Fired 121 | . 36 10 75 Largest 2 | . 2 2 2 Hottest 112 | . 90 112 105 Shots Fired 224 | . 72 18 134 Gun 104 | . 72 6 26 Cannon 107 | . . 8 99 Launcher 13 | . . 4 9 Special . | . . . . Kinetic 144 | . 33 7 104 Thermal 55 | . 33 1 21 Explosive 13 | . . 4 9 Electromagnetic 12 | . 6 6 . Robot Hit Streak 13 | . 11 3 13 Robot Miss Streak 6 | . 3 3 6 Penetration Max . | . . . . Secondary Targets 4 | . 2 2 . Max Gunslinging Chain 1 | . 1 1 . Shots Hit Robots 139 | . 49 10 80 Core Hits 93 | . 20 13 60 Critical Kills . | . . . . Critical Parts Destroyed . | . . . . Critical Strikes 6 | . 3 . 3 Burn 3 | . 3 . . Blast 3 | . . . 3 Melee Attacks . | . . . . Impact . | . . . . Slashing . | . . . . Piercing . | . . . . Sneak Attacks . | . . . . Combat Hostiles . | . . . . Follow-up Attacks . | . . . . Damage Inflicted 3581 | . 604 480 2497 Guns 950 | . 604 50 296 Cannons 1485 | . . 116 1369 Explosions 1146 | . . 314 832 Melee . | . . . . Ramming . | . . . . Kinetic 1739 | . 270 89 1380 Thermal 599 | . 287 27 285 Explosive 1146 | . . 314 832 Electromagnetic 97 | . 47 50 . Impact . | . . . . Slashing . | . . . . Piercing . | . . . . Highest Corruption . | . . . . Average Corruption . | . . . . Corruption Purged . | . . . . Corruption Blocked . | . . . . Overload Shots . | . . . . Overflow Damage 28 | . . . 28 Projectiles 18 | . . . 18 Explosions 10 | . . . 10 Melee . | . . . . Knockbacks 6 | . . . 6 Impact . | . . . . Kinetic 6 | . . . 6 Secondary . | . . . . Self-Inflicted Damage 25 | . . . 25 Shots 1 | . . . 1 Rammed . | . . . . Targets Rammed . | . . . . Kicked . | . . . . Crushed . | . . . . Highest Temperature 363 | . 328 135 363 Average Temperature 94 | . 102 51 96 Received Heat Transfer 648 | . 261 . 387 Effects 8 | . 3 . 5 Shutdowns 1 | . 1 . . Energy Bleed 3 | . 2 . 1 Interference 1 | . . . 1 Matter Decay 2 | . . . 2 Damage (minor) 1 | . . . 1 Siege Activations . | . . . . Martial Activations . | . . . . Shielding Activations . | . . . . Robots Disrupted . | . . . . Combat Hostiles . | . . . . Robots Corrupted . | . . . . Combat Hostiles . | . . . . Parts Fried . | . . . . Impact Corruptions . | . . . . Robots Melted 1 | . 1 . . Combat Hostiles 1 | . 1 . . Parts Melted 4 | . 3 . 1 Heat Transferred 1591 | . 1073 37 481 Parts Sabotaged . | . . . . Parts Stolen . | . . . . Parts Stripped . | . . . . Power Chain Reactions . | . . . . Alert | -11 -10 -10 -9 ------- Run | Yrd Mat Min Mat Maximum Alert Level 2 | . . . 2 Low Security (%) 65 | 100 100 100 23 Level 1 14 | . . . 33 Level 2 19 | . . . 43 Level 3 . | . . . . Level 4 . | . . . . Level 5 . | . . . . High Security . | . . . . Max Security . | . . . . Peak Influence 517 | . 110 60 517 Initial 8 | . . 8 . Average 157 | . 42 12 308 Influence Increases 1322 | . 350 82 890 Destroy 0b10 Robot/C 780 | . 200 60 520 Destroy 0b10 Robot/NC 65 | . 5 5 55 Destroy Leader 184 | . 42 10 132 Successful Hack 33 | . 13 . 20 Select Force Hacks 90 | . 60 . 30 Disable Machine 45 | . . . 45 Destroy Structure 95 | . . 7 88 Lose Combat Pursuer 30 | . 30 . . Influence Decreases 846 | . 327 105 414 Entered New Map 15 | . . 15 . Time Decay 801 | . 327 90 384 Lost Part 30 | . . . 30 Squads Dispatched 6 | . 3 . 3 Investigation 3 | . 2 . 1 Extermination . | . . . . Reinforcement 3 | . 1 . 2 Assault . | . . . . Garrison . | . . . . Intercept . | . . . . Searches Triggered . | . . . . Construction Impeded . | . . . . Haulers Reinforced . | . . . . Active Scanning Responses . | . . . . Cargo Convoy Interrupts . | . . . . Stealth | -11 -10 -10 -9 --------- Run | Yrd Mat Min Mat Distress Signals 3 | . 2 . 1 Communications Jammed . | . . . . Distress Signals . | . . . . Times Spotted 74 | . 22 17 35 Peak Tracking Total 13 | . 5 13 6 Tactical Retreats 4 | . 2 2 . Traps | -11 -10 -10 -9 ------- Run | Yrd Mat Min Mat Traps Triggered 2 | . . 2 . Indirectly . | . . . . Trap Hack Attempts . | . . . . Triggered . | . . . . Disarmed . | . . . . Reprogrammed . | . . . . Reused . | . . . . Traps Extracted . | . . . . Installed . | . . . . Triggered . | . . . . Machines | -11 -10 -10 -9 ---------- Run | Yrd Mat Min Mat Machines Disabled 3 | . . . 3 Max in Single Turn 2 | . . . 2 Machines Repaired . | . . . . Machines Dismantled . | . . . . Machines Sabotaged . | . . . . Overloaded Fab Kills . | . . . . Hacking | -11 -10 -10 -9 --------- Run | Yrd Mat Min Mat Machines Accessed 18 | . 9 1 8 Terminals 14 | . 7 . 7 Fabricators . | . . . . Repair Stations . | . . . . Recycling Units 3 | . 2 . 1 Scanalyzers . | . . . . Garrison Access . | . . . . Total Hacks 42 | . 26 1 15 Successful 26 | . 13 1 12 Failed 16 | . 13 . 3 Catastrophic 2 | . 2 . . Database Lockouts . | . . . . Manual 39 | . 23 . 16 Terminals 38 | . 24 . 14 Fabricators . | . . . . Repair Stations . | . . . . Recycling Units 3 | . 2 . 1 Scanalyzers . | . . . . Garrison Access . | . . . . Terminal Hacks 7 | . 4 1 2 Robot Analysis 2 | . 2 . . Open Door 1 | . . 1 . Terminal Index 2 | . 1 . 1 Recycling Unit Index 2 | . 1 . 1 Fabricator Hacks . | . . . . Repair Station Hacks . | . . . . Recycling Unit Hacks . | . . . . Scanalyzer . | . . . . Garrison Access Hacks . | . . . . Unauthorized Hacks 19 | . 9 . 10 Terminals 16 | . 7 . 9 Assimilate 1 | . . . 1 Botnet 4 | . 2 . 2 Skim 11 | . 5 . 6 Fabricators . | . . . . Repair Stations . | . . . . Recycling Units 3 | . 2 . 1 Tunnel 3 | . 2 . 1 Scanalyzers . | . . . . Garrison Access . | . . . . Data Cores Recovered 1 | . . . 1 Used 1 | . . . 1 Hacking Detections 13 | . 7 . 6 Full Trace Events . | . . . . Feedback Events . | . . . . Feedback Blocked . | . . . . Robot Schematics Acquired . | . . . . Robots Built . | . . . . Authchips . | . . . . Time . | . . . . Total Robot Build Rating . | . . . . Part Schematics Acquired . | . . . . Parts Built . | . . . . Authchips . | . . . . Time . | . . . . Total Part Build Rating . | . . . . Parts Repaired . | . . . . Time . | . . . . Parts Recycled . | . . . . Recycled Matter . | . . . . Retrieved Matter . | . . . . Retrieved Components . | . . . . Parts Scanalyzed . | . . . . Part Schematics Acquired . | . . . . Parts Damaged . | . . . . Bothacking | -11 -10 -10 -9 ------------ Run | Yrd Mat Min Mat Used RIF Installer . | . . . . Robots Hacked . | . . . . Non-combat . | . . . . Combat . | . . . . Robot Hacks Applied . | . . . . Relay Couplers Released . | . . . . Fabnet Peak Effective % . | . . . . Robots Rewired . | . . . . Allies Hacked . | . . . . Hacks Repelled . | . . . . Allies | -11 -10 -10 -9 -------- Run | Yrd Mat Min Mat Total Allies . | . . . . Largest Group . | . . . . Highest-Rated Group . | . . . . Highest-Rated Ally . | . . . . Total Orders . | . . . . Ally Attacks . | . . . . Total Damage . | . . . . Kills . | . . . . Allies Corrupted . | . . . . Allies Melted . | . . . . Intel | -11 -10 -10 -9 ------- Run | Yrd Mat Min Mat Active Infowar (turns) . | . . . . Robot Analysis Total 2 | . 2 . . Derelict Logs Recovered 1 | . . 1 . Drone Launches . | . . . . Drone Recoveries . | . . . . Exploration | -11 -10 -10 -9 ------------- Run | Yrd Mat Min Mat Turns Passed 2459 | 76 920 350 1113 Spaces Moved 1370 | 44 457 203 666 Core 6 | 6 . . . Treads 636 | 38 457 141 . Legs . | . . . . Wheels 728 | . . 62 666 Hover . | . . . . Flight . | . . . . Fastest Speed 50 | 50 160 115 110 Average Speed 134 | 145 160 150 112 Slowest Speed 160 | 160 160 160 115 Overloaded Moves . | . . . . Propulsion Burnouts . | . . . . Robots Hopped . | . . . . Potential Cave-ins . | . . . . Cave-ins Triggered . | . . . . Exploration Rate (%) 50 | 5 81 47 69 Regions Visited 3 Branch Regions 1 Pre-discovered Areas 5 | . 2 . 3 Known Exits Taken 1 | . . 1 . Unknown Exits Taken 2 | 1 1 . . Scrap Searched 1 | . . 1 . Spaces Dug 8 | . . . 8 Terrain Destroyed 135 | . . 30 105 Melee . | . . . . Projectile 10 | . . 3 7 AOE 125 | . . 27 98 Terrain Rammed . | . . . . Walls Destroyed . | . . . . Machines Disabled . | . . . . Actions | -11 -10 -10 -9 --------- Run | Yrd Mat Min Mat Total 1753 | 53 573 227 900 Wait 175 | . 60 . 115 Move 1367 | 43 456 202 666 Hop . | . . . . Pick Up 30 | 4 12 4 10 Fast Attach 19 | 6 3 3 7 Attach 4 | . . 2 2 Detach . | . . . . Swap 16 | . 2 3 11 Drop 21 | . 4 3 14 Fire 121 | . 36 10 75 Melee . | . . . . Ram . | . . . . Kick . | . . . . Crush . | . . . . Escape Stasis . | . . . . Rewire . | . . . . Trap . | . . . . Miscellaneous . | . . . . Route ------- -11/Scrapyard -10/Materials (discovered 6 exits: *Mat x3 / *Min x2 / *Sub) -10/Mines -9/Materials (discovered 3 exits: *Mat x3) History --------- Turn | Location | Event 8 | -11/Scrapyard | Discovered new exit (range 15) 77 | -11/Scrapyard | Entered Materials 78 | -10/Materials | Met a group of wandering Federalists 300 | -10/Materials | Discovered new exit (range 14) 306 | -10/Materials | Build established: Mutant 418 | -10/Materials | Discovered new exit (range 6) 635 | -10/Materials | Discovered new exit (range 15) 711 | -10/Materials | Discovered new exit (range 6) 799 | -10/Materials | Loaded intel: 12 trap records 848 | -10/Materials | Learned Storage stockpile data 885 | -10/Materials | Loaded intel: 1 repair station location 914 | -10/Materials | Learned 2 Mines zone layouts 933 | -10/Materials | Identified exit to Subcaves 947 | -10/Materials | Identified exit to Materials 963 | -10/Materials | Learned 2 Materials zone layouts 997 | -10/Materials | Entered Mines 1080 | -10/Mines | Received a Rocket Launcher from a helpful Derelict 1098 | -10/Mines | Learned location of 1 exit from Materials 1114 | -10/Mines | Core integrity fell below 50% 1225 | -10/Mines | Assembled infested the area 1227 | -10/Mines | Met a Derelict who couldn't figure out how to use a Trap Extractor 1312 | -10/Mines | Destroyed 8 combat bots 1347 | -10/Mines | Entered Materials 1347 | -9/Materials | Evolved 2 slots: Utility x2 1348 | -9/Materials | Identified exit to Materials 1944 | -9/Materials | Learned location of 1 exit from Storage 2084 | -9/Materials | Loaded intel: 18 trap records 2142 | -9/Materials | Learned location of Recycling (-7) 2188 | -9/Materials | Learned location of 3 exits from Materials 2224 | -9/Materials | Learned Storage stockpile data 2333 | -9/Materials | Learned 4 Recycling zone layouts 2389 | -9/Materials | Learned Storage trap positions 2454 | -9/Materials | Learned Storage stockpile data 2460 | -9/Materials | Self-destructed Last Messages --------------- 02298_ Hrd. Light Armor Plating destroyed. 02304_ Nuclear Reactor explodes. 02304_ Y-45 Defender destroyed. 02319_ K-01 Serf cleans the Terminal. 02322_ Acquired Lrg. Storage Unit. 02324_ Dropped Lrg. Storage Unit. 02327_ The unstable cave ceiling collapses. 02333_ >> SKIM: Stored Recycling zone layouts (x4). 02338_ Connecting with Terminal... >>Trojan(Skim) Trojan loaded successfully. Testing... Terminal linked with 5 systems. Overkill, but a backup won't hurt. --A0-MCA 02348_ K-01 Serf cleans the Terminal. 02389_ >> SKIM: Stored Storage trap records. 02443_ A-02 Transporter destroyed. 02454_ >> SKIM: Stored Storage stockpile data. 02454_ >> SKIM: Data seek routine purged. Map ----- +----------------------------------------------------+ | ???????????????????????????# # # #?? | | ???????????????????????????####### # + * !#?? | | ?????????????????????????????????# # # #?? | | ?????????????????????????????????# # # =#?? | | ????????????????????????????????## # # #?? | | ????????????????????????????????# # # ######?? | | ????????????????????????????????### #! ##??????? | | ????????????????????????????????### # %= #??????? | | ????????????????????????????????# ] !%= #??????? | | ????????????????????????????????#]]] % ##??????? | | ????????????????????????????????#== #??????? | | ????????????????????????????????#== ########?? | | ??????????????? ######??????????#] ]= # """ #?? | | ??????????????? #??????????#]]=% # "Y" #?? | | ???????????????" #??????????##### # " " ### | | ????????????#"R #??????????????# + + | | ????????????#""" #??????????????# # ! ### | | ????????????# #??????????????# # %% #?? | | ????????????# """ #??????????????# ########?? | | ????????????# """ #??############# #????????? | | ????????????# """ #??# # ########## | | ????????????# #??# # # | | ????????????#####+####??# + # | | ?????????????# #??# # # | | ?????????????# #??# a # # | | ?????????????# ####@!]! # # | | ?????????????# T + !%! # # | | ?????????????# ################ # ! | | ?????????????# #??????# ?# # | | ?????????????# #??????# # #####/#### | | ?????????????### ###??????# # | | ???????????????# #????????# + | | ???????????????# #????????# # ^ T | | ???????????????# #????????# # ### | | ??????????????## ##???????# ?# #?? | | ??????????????# #???????# ?# ]== #?? | | ??????????????# ####????# ??# ]= #?? | | ??????????????# T !##???# ??# ^= #?? | | ??????????????# !#???# ???# = #?? | | ??????????????# !#???######+## #?? | | ??????????????### ### !#????????# ## #?? | | ????????????????# ??# !#####????# ## #?? | | ????????????????# ??# ! ###??# ## #?? | | ????????????????# ?## #??# ## #?? | | ????????????????# ?# #??# ## ^ #?? | | ????????????????# ?# #??# ## #?? | | ????????????????# ?# ####+## ^ """ #?? | | ????????????????# ?# ##^ """ #?? | | ???????????????????# #[""" ## """ #?? | | ???????????????????# R" ## """ #?? | +----------------------------------------------------+ Best States ------------- Heat Dissipation 28 Energy Generation 10 Energy Capacity 250 Matter Stores 300 Matter Capacity 300 Sight Range 16 Terrain Scan Density 10 Armor Coverage 375 Evasion (%) 40 Recoil Reduction 2 Offensive Hacking 10 Item Schematics ----------------- None Robot Schematics ------------------ None Fabricated ------------ Nothing Repaired ---------- Nothing Alien Tech Used ----------------- None Achievements -------------- None Challenges ------------ None Game ------ Seed SmartSignalMegatreads Manual? 0 Play Time 00:27:45 Cumulative 300.0 hours Start 2025.08.13 @ 11:41:34 End 2025.08.13 @ 12:08:32 Sessions 1 Manual Loads 0 Difficulty Rogue Special Mode None Game No. 245 Rogue 245 Adventurer 0 Explorer 0 Win Type - Total 2 Types 2/0/0/0/0/0/0/0/0/0 Lore% 80 Gallery% 67 Achievement% 57 Wizard Run 0 Options --------- Layout 1 ASCII 0 Keyboard 0 Movement Mouse Keybinds 0 Fullscreen 1 Font 24/Smallcaps Map View 50x35 Zoom Use 0% Tactical HUD 1 Map Filters NONE Filters NONE Steam 1 RUN: f2df2601-7fa6-4582-a9f0-983ef9752507